[Event "Masters Tournament (MTO)"]
[Site "Biel, Switzerland"]
[Date "2026.07.15"]
[Round "3.44"]
[White "Hornung, Hans"]
[Black "Di Candia, Roberto"]
[Result "1/2-1/2"]
[TimeControl "100+30+30sec/move"]
[WhiteTitle "-"]
[BlackTitle "-"]
[WhiteFideId "4615140"]
[BlackFideId "856649"]
[WhiteElo "1924"]
[BlackElo "1988"]

1. c4 {[%clk 01:39:30]} {[%emt 00:01:29]} e6 {[%clk 01:40:43]} {[%emt
00:00:18]} 2. Nc3 {[%clk 01:39:01]} {[%emt 00:00:58]} d5 {[%clk 01:41:03]}
{[%emt 00:00:11]} 3. d4 {[%clk 01:39:25]} {[%emt 00:00:05]} Nf6 {[%clk
01:41:22]} {[%emt 00:00:10]} 4. cxd5 {[%clk 01:39:40]} {[%emt 00:00:16]} exd5
{[%clk 01:41:48]} {[%emt 00:00:05]} 5. Bg5 {[%clk 01:40:04]} {[%emt 00:00:05]}
Be7 {[%clk 01:41:41]} {[%emt 00:00:37]} 6. e3 {[%clk 01:40:23]} {[%emt
00:00:11]} h6 {[%clk 01:41:58]} {[%emt 00:00:14]} 7. Bh4 {[%clk 01:40:14]}
{[%emt 00:00:38]} O-O {[%clk 01:42:13]} {[%emt 00:00:15]} 8. Bd3 {[%clk
01:40:33]} {[%emt 00:00:10]} c6 {[%clk 01:42:16]} {[%emt 00:00:28]} 9. Nge2
{[%clk 01:34:34]} {[%emt 00:06:29]} Ne8 {[%clk 01:36:23]} {[%emt 00:06:22]} 10.
Bg3 {[%clk 01:33:13]} {[%emt 00:01:50]} Nd6 {[%clk 01:35:49]} {[%emt 00:01:07]}
11. Qc2 {[%clk 01:32:09]} {[%emt 00:01:33]} Re8 {[%clk 01:35:36]} {[%emt
00:00:43]} 12. O-O {[%clk 01:31:56]} {[%emt 00:00:43]} Bf8 {[%clk 01:35:52]}
{[%emt 00:00:14]} 13. Rad1 {[%clk 01:27:15]} {[%emt 00:05:11]} a5 {[%clk
01:35:07]} {[%emt 00:01:16]} 14. Nf4 {[%clk 01:11:58]} {[%emt 00:15:46]} Na6
{[%clk 01:34:37]} {[%emt 00:01:01]} 15. a3 {[%clk 01:05:45]} {[%emt 00:06:43]}
Nc7 {[%clk 01:34:48]} {[%emt 00:00:18]} 16. e4 {[%clk 01:03:58]} {[%emt
00:02:16]} dxe4 {[%clk 01:30:44]} {[%emt 00:04:36]} 17. Nxe4 {[%clk 01:04:05]}
{[%emt 00:00:21]} Nf5 {[%clk 01:14:14]} {[%emt 00:17:01]} 18. Bc4 {[%clk
00:56:32]} {[%emt 00:08:03]} Nd5 {[%clk 01:08:33]} {[%emt 00:06:11]} 19. Nh5
{[%clk 00:52:36]} {[%emt 00:04:25]} Be6 {[%clk 00:58:55]} {[%emt 00:10:10]} 20.
Nc5 {[%clk 00:45:59]} {[%emt 00:07:07]} Nxg3 {[%clk 00:54:47]} {[%emt
00:04:37]} 21. Nxe6 {[%clk 00:44:08]} {[%emt 00:02:20]} Rxe6 {[%clk 00:53:50]}
{[%emt 00:01:27]} 22. hxg3 {[%clk 00:42:51]} {[%emt 00:01:47]} Rd6 {[%clk
00:53:15]} {[%emt 00:01:05]} 23. Ba2 {[%clk 00:38:41]} {[%emt 00:04:40]} g6
{[%clk 00:45:01]} {[%emt 00:08:45]} 24. Nf4 {[%clk 00:38:50]} {[%emt 00:00:20]}
Nxf4 {[%clk 00:45:20]} {[%emt 00:00:12]} 25. gxf4 {[%clk 00:39:05]} {[%emt
00:00:15]} Qf6 {[%clk 00:45:06]} {[%emt 00:00:44]} 26. d5 {[%clk 00:37:09]}
{[%emt 00:02:26]} Qxf4 {[%clk 00:43:26]} {[%emt 00:02:10]} 27. dxc6 {[%clk
00:36:19]} {[%emt 00:01:21]} Rxc6 {[%clk 00:43:43]} {[%emt 00:00:13]} 28. Qd2
{[%clk 00:34:51]} {[%emt 00:01:57]} Qf6 {[%clk 00:39:08]} {[%emt 00:05:05]} 29.
Qd7 {[%clk 00:27:38]} {[%emt 00:07:42]} Rc2 {[%clk 00:26:53]} {[%emt 00:12:46]}
30. Rd3 {[%clk 00:24:58]} {[%emt 00:03:10]} Rxb2 {[%clk 00:24:05]} {[%emt
00:03:18]} 31. Bd5 {[%clk 00:21:58]} {[%emt 00:03:29]} Qe7 {[%clk 00:19:25]}
{[%emt 00:05:09]} 32. Qxe7 {[%clk 00:16:29]} {[%emt 00:06:01]} Bxe7 {[%clk
00:19:52]} {[%emt 00:00:03]} 33. Rc1 {[%clk 00:16:20]} {[%emt 00:00:40]} Rd8
{[%clk 00:15:38]} {[%emt 00:04:43]} 34. g3 {[%clk 00:15:12]} {[%emt 00:01:39]}
b6 {[%clk 00:13:09]} {[%emt 00:02:59]} 35. Rc7 {[%clk 00:13:27]} {[%emt
00:02:13]} Rxd5 {[%clk 00:11:21]} {[%emt 00:02:19]} 36. Rxd5 {[%clk 00:13:33]}
{[%emt 00:00:24]} Bc5 {[%clk 00:11:05]} {[%emt 00:00:47]} 37. Rcxc5 {[%clk
00:12:01]} {[%emt 00:02:01]} 1/2-1/2

[Event "Masters Tournament (MTO)"]
[Site "Biel, Switzerland"]
[Date "2026.07.15"]
[Round "3.45"]
[White "Rosen, Noah"]
[Black "Celis, Joel"]
[Result "1-0"]
[TimeControl "100+30+30sec/move"]
[WhiteTitle "-"]
[BlackTitle "-"]
[WhiteFideId "1356267"]
[BlackFideId "15400212"]
[WhiteElo "1921"]
[BlackElo "1981"]

1. e4 {[%clk 01:40:53]} {[%emt 00:00:06]} c5 {[%clk 01:40:53]} {[%emt
00:00:08]} 2. Nf3 {[%clk 01:41:15]} {[%emt 00:00:08]} Nc6 {[%clk 01:41:16]}
{[%emt 00:00:07]} 3. Bb5 {[%clk 01:41:30]} {[%emt 00:00:14]} g6 {[%clk
01:41:28]} {[%emt 00:00:19]} 4. Bxc6 {[%clk 01:41:44]} {[%emt 00:00:15]} dxc6
{[%clk 01:38:23]} {[%emt 00:03:35]} 5. d3 {[%clk 01:41:57]} {[%emt 00:00:17]}
Bg7 {[%clk 01:38:16]} {[%emt 00:00:37]} 6. h3 {[%clk 01:42:08]} {[%emt
00:00:19]} Nf6 {[%clk 01:33:29]} {[%emt 00:05:18]} 7. Nc3 {[%clk 01:40:52]}
{[%emt 00:01:46]} O-O {[%clk 01:33:10]} {[%emt 00:00:50]} 8. O-O {[%clk
01:41:09]} {[%emt 00:00:11]} Qc7 {[%clk 01:28:45]} {[%emt 00:04:56]} 9. Be3
{[%clk 01:36:30]} {[%emt 00:05:09]} b6 {[%clk 01:27:53]} {[%emt 00:01:22]} 10.
a4 {[%clk 01:36:12]} {[%emt 00:00:47]} a5 {[%clk 01:06:03]} {[%emt 00:22:21]}
11. Qd2 {[%clk 01:31:25]} {[%emt 00:05:16]} Ba6 {[%clk 00:56:09]} {[%emt
00:10:24]} 12. Bh6 {[%clk 01:22:44]} {[%emt 00:09:10]} Rad8 {[%clk 00:47:18]}
{[%emt 00:09:22]} 13. Bxg7 {[%clk 01:15:01]} {[%emt 00:08:14]} Kxg7 {[%clk
00:47:41]} {[%emt 00:00:07]} 14. e5 {[%clk 01:15:08]} {[%emt 00:00:22]} Nd5
{[%clk 00:45:50]} {[%emt 00:02:22]} 15. Ne4 {[%clk 01:14:56]} {[%emt 00:00:41]}
c4 {[%clk 00:24:16]} {[%emt 00:22:04]} 16. d4 {[%clk 01:02:05]} {[%emt
00:13:21]} c3 {[%clk 00:23:01]} {[%emt 00:01:46]} 17. bxc3 {[%clk 01:02:28]}
{[%emt 00:00:06]} Bxf1 {[%clk 00:23:19]} {[%emt 00:00:13]} 18. Kxf1 {[%clk
01:02:06]} {[%emt 00:00:51]} Qd7 {[%clk 00:17:16]} {[%emt 00:06:33]} 19. c4
{[%clk 00:58:23]} {[%emt 00:04:13]} Nc7 {[%clk 00:17:09]} {[%emt 00:00:38]} 20.
c3 {[%clk 00:56:57]} {[%emt 00:01:56]} h6 {[%clk 00:16:03]} {[%emt 00:01:36]}
21. Nh2 {[%clk 00:51:08]} {[%emt 00:06:17]} Qf5 {[%clk 00:11:54]} {[%emt
00:04:39]} 22. Qe3 {[%clk 00:51:16]} {[%emt 00:00:22]} Ne6 {[%clk 00:10:54]}
{[%emt 00:01:31]} 23. Ng4 {[%clk 00:45:12]} {[%emt 00:06:34]} Qf4 {[%clk
00:10:19]} {[%emt 00:01:05]} 24. Qe2 {[%clk 00:44:09]} {[%emt 00:01:34]} h5
{[%clk 00:09:03]} {[%emt 00:01:46]} 25. g3 {[%clk 00:42:53]} {[%emt 00:01:45]}
Qf5 {[%clk 00:08:50]} {[%emt 00:00:43]} 26. Kg2 {[%clk 00:38:40]} {[%emt
00:04:43]} Nxd4 {[%clk 00:06:40]} {[%emt 00:02:41]} 27. cxd4 {[%clk 00:37:34]}
{[%emt 00:01:36]} Rxd4 {[%clk 00:07:05]} {[%emt 00:00:05]} 28. Ngf6 {[%clk
00:36:01]} {[%emt 00:02:02]} exf6 {[%clk 00:06:22]} {[%emt 00:01:13]} 29. exf6+
{[%clk 00:35:33]} {[%emt 00:00:58]} Kh8 {[%clk 00:05:35]} {[%emt 00:01:17]} 30.
f3 {[%clk 00:35:14]} {[%emt 00:00:49]} Rxe4 {[%clk 00:03:40]} {[%emt 00:02:25]}
31. Qxe4 {[%emt 00:03:39]} Qxf6 {[%clk 00:03:59]} {[%emt 00:00:08]} 32. Rd1
{[%clk 00:32:04]} {[%emt 00:00:34]} Kh7 {[%clk 00:02:37]} {[%emt 00:01:52]} 33.
Rd7 {[%clk 00:25:36]} {[%emt 00:06:58]} c5 {[%clk 00:01:59]} {[%emt 00:01:09]}
34. Rd5 {[%clk 00:25:50]} {[%emt 00:00:15]} Kg7 {[%clk 00:01:43]} {[%emt
00:00:46]} 35. h4 {[%clk 00:20:08]} {[%emt 00:06:12]} Rc8 {[%clk 00:01:29]}
{[%emt 00:00:45]} 36. Rd7 {[%clk 00:19:28]} {[%emt 00:01:09]} Rc6 {[%clk
00:01:17]} {[%emt 00:00:43]} 37. Qd3 {[%clk 00:18:01]} {[%emt 00:01:57]} Re6
{[%clk 00:01:16]} {[%emt 00:00:30]} 38. Qc2 {[%clk 00:06:44]} {[%emt 00:11:46]}
Re1 {[%clk 00:01:17]} {[%emt 00:00:30]} 39. Rd2 {[%clk 00:06:33]} {[%emt
00:00:41]} Qe5 {[%clk 00:01:04]} {[%emt 00:00:43]} 40. Qb2 {[%clk 00:03:16]}
{[%emt 00:03:47]} Qxb2 {[%clk 00:01:23]} {[%emt 00:00:12]} 41. Rxb2 {[%clk
00:03:39]} {[%emt 00:00:06]} Ra1 {[%clk 00:01:11]} {[%emt 00:00:42]} 42. Rxb6
{[%clk 00:04:02]} {[%emt 00:00:08]} Rxa4 {[%clk 00:01:27]} {[%emt 00:00:14]} 43.
Rb5 {[%clk 00:04:27]} {[%emt 00:00:04]} Rxc4 {[%clk 00:01:52]} {[%emt
00:00:06]} 44. Rxa5 {[%clk 00:04:51]} {[%emt 00:00:05]} Kf6 {[%clk 00:02:10]}
{[%emt 00:00:11]} 45. Kf2 {[%clk 00:02:42]} {[%emt 00:02:40]} Ke5 {[%clk
00:02:08]} {[%emt 00:00:32]} 46. Ra8 {[%clk 00:02:21]} {[%emt 00:00:51]} Rc2+
{[%clk 00:19:26]} {[%emt 00:13:13]} 47. Ke3 {[%clk 00:32:15]} {[%emt 00:00:35]}
Rc3+ {[%clk 00:17:27]} {[%emt 00:02:29]} 48. Ke2 {[%clk 00:32:23]} {[%emt
00:00:21]} c4 {[%clk 00:17:01]} {[%emt 00:00:57]} 49. Re8+ {[%clk 00:32:00]}
{[%emt 00:00:52]} Kf5 {[%clk 00:13:41]} {[%emt 00:03:50]} 50. Re4 {[%clk
00:23:32]} {[%emt 00:08:59]} f6 {[%clk 00:13:12]} {[%emt 00:00:59]} 51. Re8
{[%clk 00:23:00]} {[%emt 00:01:01]} Rc2+ {[%clk 00:09:16]} {[%emt 00:04:27]} 52.
Ke3 {[%clk 00:21:48]} {[%emt 00:01:42]} Rc1 {[%clk 00:04:10]} {[%emt 00:05:36]}
53. Rc8 {[%clk 00:19:23]} {[%emt 00:02:54]} c3 {[%clk 00:02:44]} {[%emt
00:01:57]} 54. Rc5+ {[%clk 00:18:00]} {[%emt 00:01:52]} Ke6 {[%clk 00:03:05]}
{[%emt 00:00:10]} 55. Kd3 {[%clk 00:17:32]} {[%emt 00:00:57]} Rd1+ {[%clk
00:01:03]} {[%emt 00:02:33]} 56. Ke2 {[%clk 00:17:21]} {[%emt 00:00:41]} Rd2+
{[%clk 00:01:26]} {[%emt 00:00:07]} 57. Ke3 {[%clk 00:17:44]} {[%emt 00:00:06]}
Rc2 {[%clk 00:01:39]} {[%emt 00:00:18]} 58. Kd3 {[%clk 00:12:30]} {[%emt
00:05:44]} Rd2+ {[%clk 00:01:12]} {[%emt 00:00:56]} 59. Ke3 {[%clk 00:12:49]}
{[%emt 00:00:11]} Rc2 {[%clk 00:01:38]} {[%emt 00:00:04]} 60. Kd3 {[%clk
00:13:05]} {[%emt 00:00:14]} Rg2 {[%clk 00:01:14]} {[%emt 00:00:55]} 61. Rxc3
{[%clk 00:13:10]} {[%emt 00:00:25]} Rxg3 {[%clk 00:01:38]} {[%emt 00:00:06]} 62.
Ke2 {[%clk 00:13:28]} {[%emt 00:00:12]} Ke5 {[%clk 00:00:41]} {[%emt 00:01:27]}
63. Kf2 {[%clk 00:13:49]} {[%emt 00:00:08]} Rh3 {[%clk 00:00:55]} {[%emt
00:00:17]} 64. f4+ {[%clk 00:14:14]} {[%emt 00:00:05]} Kxf4 {[%clk 00:01:11]}
{[%emt 00:00:14]} 65. Rxh3 {[%clk 00:14:39]} {[%emt 00:00:05]} Kg4 {[%clk
00:01:31]} {[%emt 00:00:11]} 66. Rh1 {[%clk 00:15:01]} {[%emt 00:00:07]} g5
{[%clk 00:00:38]} {[%emt 00:01:23]} 67. hxg5 {[%clk 00:15:20]} {[%emt
00:00:10]} fxg5 {[%clk 00:01:03]} {[%emt 00:00:06]} 68. Kg2 {[%clk 00:15:45]}
{[%emt 00:00:05]} h4 {[%clk 00:01:22]} {[%emt 00:00:11]} 69. Ra1 {[%clk
00:15:48]} {[%emt 00:00:27]} h3+ {[%clk 00:01:42]} {[%emt 00:00:10]} 70. Kh2
{[%clk 00:16:12]} {[%emt 00:00:05]} Kh4 {[%clk 00:02:07]} {[%emt 00:00:06]} 71.
Ra3 {[%clk 00:16:06]} {[%emt 00:00:35]} g4 {[%clk 00:02:30]} {[%emt 00:00:08]}
72. Rb3 {[%clk 00:16:30]} {[%emt 00:00:06]} 1-0

[Event "Masters Tournament (MTO)"]
[Site "Biel, Switzerland"]
[Date "2026.07.15"]
[Round "3.46"]
[White "Alsaleh, Eissa"]
[Black "Wiesmann, Dominique"]
[Result "1/2-1/2"]
[TimeControl "100+30+30sec/move"]
[WhiteTitle "-"]
[BlackTitle "-"]
[WhiteFideId "10312463"]
[BlackFideId "1308262"]
[WhiteElo "1908"]
[BlackElo "1978"]

1. e4 {[%clk 01:40:52]} {[%emt 00:00:07]} c6 {[%clk 01:40:44]} {[%emt
00:00:17]} 2. d4 {[%clk 01:40:41]} {[%emt 00:00:42]} d5 {[%clk 01:41:05]}
{[%emt 00:00:07]} 3. Nc3 {[%clk 01:40:19]} {[%emt 00:00:53]} dxe4 {[%clk
01:41:29]} {[%emt 00:00:06]} 4. Nxe4 {[%clk 01:40:35]} {[%emt 00:00:14]} Nf6
{[%clk 01:41:53]} {[%emt 00:00:06]} 5. Nxf6+ {[%clk 01:39:31]} {[%emt
00:01:32]} gxf6 {[%clk 01:42:14]} {[%emt 00:00:10]} 6. c3 {[%clk 01:37:03]}
{[%emt 00:02:59]} Qd5 {[%clk 01:42:40]} {[%emt 00:00:03]} 7. Qf3 {[%clk
01:31:14]} {[%emt 00:06:20]} Bf5 {[%clk 01:43:04]} {[%emt 00:00:06]} 8. Qxd5
{[%clk 01:24:50]} {[%emt 00:06:53]} cxd5 {[%clk 01:43:32]} {[%emt 00:00:04]} 9.
Bf4 {[%clk 01:22:05]} {[%emt 00:03:11]} Nc6 {[%clk 01:43:19]} {[%emt 00:00:45]}
10. Nf3 {[%clk 01:20:30]} {[%emt 00:02:05]} a6 {[%clk 01:39:26]} {[%emt
00:04:23]} 11. Nh4 {[%clk 01:13:17]} {[%emt 00:07:43]} Bg6 {[%clk 01:39:31]}
{[%emt 00:00:25]} 12. O-O-O {[%clk 01:09:12]} {[%emt 00:04:36]} e6 {[%clk
01:37:50]} {[%emt 00:02:10]} 13. c4 {[%clk 01:01:09]} {[%emt 00:08:33]} Nb4
{[%clk 01:36:42]} {[%emt 00:01:38]} 14. a3 {[%clk 00:54:40]} {[%emt 00:07:00]}
Nc6 {[%clk 01:37:06]} {[%emt 00:00:05]} 15. cxd5 {[%clk 00:53:12]} {[%emt
00:01:59]} exd5 {[%clk 01:37:18]} {[%emt 00:00:18]} 16. Bd3 {[%clk 00:47:02]}
{[%emt 00:06:39]} Rc8 {[%clk 01:33:57]} {[%emt 00:03:50]} 17. Kb1 {[%clk
00:44:54]} {[%emt 00:02:39]} Be7 {[%clk 01:28:12]} {[%emt 00:06:16]} 18. Bf5
{[%clk 00:37:06]} {[%emt 00:08:16]} Bxf5+ {[%clk 01:22:02]} {[%emt 00:06:41]}
19. Nxf5 {[%clk 00:36:28]} {[%emt 00:01:08]} Kd7 {[%clk 01:21:57]} {[%emt
00:00:35]} 20. Ne3 {[%clk 00:32:33]} {[%emt 00:04:24]} Rhg8 {[%clk 01:15:42]}
{[%emt 00:06:45]} 21. Nxd5 {[%clk 00:31:41]} {[%emt 00:01:22]} Bd8 {[%clk
01:15:16]} {[%emt 00:00:56]} 22. Bg3 {[%clk 00:27:38]} {[%emt 00:04:31]} f5
{[%clk 01:15:15]} {[%emt 00:00:34]} 23. Rhe1 {[%clk 00:22:19]} {[%emt
00:05:48]} h5 {[%clk 01:12:39]} {[%emt 00:03:06]} 24. h4 {[%clk 00:19:16]}
{[%emt 00:03:33]} Rg4 {[%clk 01:12:28]} {[%emt 00:00:41]} 25. Ne3 {[%clk
00:17:14]} {[%emt 00:02:32]} Re4 {[%clk 01:08:01]} {[%emt 00:04:58]} 26. Nxf5
{[%clk 00:15:12]} {[%emt 00:02:32]} Rxe1 {[%clk 01:08:20]} {[%emt 00:00:11]} 27.
Rxe1 {[%clk 00:15:29]} {[%emt 00:00:12]} Bf6 {[%clk 01:08:43]} {[%emt
00:00:07]} 28. Be5 {[%clk 00:13:19]} {[%emt 00:02:40]} Be7 {[%clk 01:07:22]}
{[%emt 00:01:52]} 29. Nxe7 {[%clk 00:12:30]} {[%emt 00:01:19]} Nxe7 {[%clk
01:07:50]} {[%emt 00:00:02]} 30. Rc1 {[%clk 00:12:16]} {[%emt 00:00:45]} Nc6
{[%clk 01:08:05]} {[%emt 00:00:14]} 31. Bg3 {[%clk 00:11:15]} {[%emt 00:01:31]}
Ke6 {[%clk 01:07:42]} {[%emt 00:00:53]} 32. Rc5 {[%clk 00:10:40]} {[%emt
00:01:05]} Rd8 {[%clk 01:06:30]} {[%emt 00:01:42]} 33. Rxh5 {[%clk 00:10:18]}
{[%emt 00:00:52]} Nxd4 {[%clk 01:04:55]} {[%emt 00:02:05]} 34. Re5+ {[%clk
00:09:47]} {[%emt 00:01:00]} Kf6 {[%clk 01:05:10]} {[%emt 00:00:15]} 35. h5
{[%clk 00:08:22]} {[%emt 00:01:55]} Nf5 {[%clk 01:04:35]} {[%emt 00:01:05]} 36.
Bh2 {[%clk 00:06:23]} {[%emt 00:02:30]} Rg8 {[%clk 01:01:46]} {[%emt 00:03:18]}
37. Re4 {[%clk 00:03:13]} {[%emt 00:03:40]} Rxg2 {[%clk 01:01:13]} {[%emt
00:01:04]} 38. Bg3 {[%clk 00:02:09]} {[%emt 00:01:34]} Rg1+ {[%clk 00:54:08]}
{[%emt 00:07:34]} 39. Ka2 {[%clk 00:01:43]} {[%emt 00:00:57]} Rh1 {[%clk
00:54:14]} {[%emt 00:00:24]} 40. Rb4 {[%clk 00:00:49]} {[%emt 00:01:24]} b5
{[%clk 00:52:05]} {[%emt 00:02:39]} 41. a4 {[%clk 00:29:43]} {[%emt 00:01:36]}
Nxg3 {[%clk 01:19:50]} {[%emt 00:02:44]} 42. fxg3 {[%clk 00:29:48]} {[%emt
00:00:26]} Rxh5 {[%clk 01:19:45]} {[%emt 00:00:35]} 43. axb5 {[%clk 00:26:58]}
{[%emt 00:03:20]} Rxb5 {[%clk 01:10:13]} {[%emt 00:10:02]} 44. Kb3 {[%clk
00:25:48]} {[%emt 00:01:40]} Kg5 {[%clk 01:10:07]} {[%emt 00:00:35]} 45. Rxb5+
{[%clk 00:22:10]} {[%emt 00:04:10]} axb5 {[%clk 01:10:28]} {[%emt 00:00:08]} 46.
Kb4 {[%clk 00:22:25]} {[%emt 00:00:14]} Kg4 {[%clk 01:10:51]} {[%emt 00:00:07]}
47. Kxb5 {[%clk 00:22:41]} {[%emt 00:00:14]} f5 {[%clk 01:11:07]} {[%emt
00:00:14]} 48. Kc6 {[%clk 00:21:50]} {[%emt 00:01:22]} Kxg3 {[%clk 01:11:28]}
{[%emt 00:00:08]} 49. b4 {[%clk 00:22:10]} {[%emt 00:00:10]} f4 {[%clk
01:11:47]} {[%emt 00:00:11]} 1/2-1/2